bitfinex-derivatives/quotes_BNBF0:USTF0_20251203
["timestamp","ask_amount","ask_price","bid_price","bid_amount"]
[1764742536067,0.19220573,905.66,904.95,0.68143004]
[1764742536268,0.19220573,905.66,904.96,0.68143004]
[1764742536469,0.19220573,905.66,904.97,0.68143004]
[1764742536668,0.19220573,905.66,904.98,0.68143004]
[1764742536867,0.19220573,905.66,904.99,0.68143004]
[1764742537168,0.19220573,905.66,905.0,0.68143004]
[1764742537367,0.19220573,905.66,904.79,0.80550348]
[1764742537368,0.19220573,905.66,905.01,0.68143004]
[1764742537570,0.19220573,905.66,905.02,0.68143004]
[1764742537774,0.19220573,905.66,905.03,0.68143004]
[1764742537971,0.19220573,905.66,905.04,0.68143004]
[1764742538174,0.19220573,905.66,905.05,0.68143004]
[1764742538375,0.19220573,905.66,905.06,0.68143004]
[1764742538674,0.19220573,905.66,905.07,0.67901952]
[1764742538874,0.19220573,905.66,905.08,0.67901952]
[1764742539073,0.19220573,905.66,904.87,0.80550348]
[1764742539074,0.19220573,905.66,905.09,0.67901952]
[1764742539271,0.19220573,905.66,905.1,0.67901952]
[1764742539470,0.19220573,905.66,905.11,0.67901952]
[1764742539670,0.19220573,905.66,905.12,0.67901952]
[1764742539870,0.19220573,905.66,905.13,0.67901952]
[1764742540071,0.01210853,906.47,905.14,0.67901952]
[1764742540273,0.19209061,905.85,905.15,0.67901952]
[1764742540475,0.01243623,906.76,905.16,0.67901952]
[1764742540671,0.19208107,905.85,905.17,0.67901952]
[1764742540871,0.01035715,906.76,905.18,0.67901952]
[1764742541075,1.65188398,907.02,905.19,0.67901952]
[1764742541276,1.65188398,907.08,905.2,0.67901952]
[1764742541472,1.65188398,907.08,905.21,0.67901952]
[1764742541672,1.65188398,907.08,905.22,0.67901952]
[1764742541977,1.65188398,907.09,905.23,0.67901952]
[1764742542277,0.19206411,906.62,905.24,0.67901952]
[1764742542479,0.19206411,906.62,905.25,0.67901952]
[1764742542777,0.19206411,906.62,905.26,0.67901952]
[1764742542973,0.19206411,906.62,905.27,0.67901952]
[1764742543277,0.19206411,906.62,905.28,0.67901952]
[1764742543472,0.19206411,906.62,905.29,0.67901952]
[1764742543677,0.19206411,906.62,905.3,0.67901952]
[1764742543874,0.19206411,906.62,905.31,0.67901952]
[1764742544074,0.19206411,906.62,905.32,0.67901952]
[1764742544276,0.19206411,906.62,905.33,0.67901952]
[1764742544479,0.19206411,906.62,905.34,0.67901952]
[1764742544778,0.19206411,906.62,905.35,0.67901952]
[1764742544980,0.19206411,906.62,905.36,0.67901952]
[1764742545177,0.19206411,906.62,905.37,0.67901952]
[1764742545377,0.19206411,906.62,905.38,0.67901952]
[1764742545683,0.19206411,906.62,905.39,0.67901952]
[1764742545881,0.19206411,906.62,905.4,0.67901952]
[1764742546078,0.19206411,906.62,905.41,0.67901952]
[1764742546283,0.19206411,906.62,905.42,0.67901952]
[1764742546484,0.19206411,906.62,905.43,0.67901952]
[1764742546784,0.19206411,906.62,905.44,0.67901952]
[1764742546982,0.19206411,906.62,905.45,0.67901952]
[1764742547283,0.19206411,906.62,905.46,0.67901952]
[1764742547584,0.19206411,906.62,905.17,0.80550348]
[1764742547784,0.19206411,906.62,905.18,0.67322662]
[1764742547981,0.19206411,906.62,905.19,0.67322662]
[1764742548179,0.19206411,906.62,905.2,0.67322662]
[1764742548384,0.19206411,906.62,905.21,0.67322662]
[1764742548580,0.19206411,906.62,905.22,0.67322662]
[1764742548785,0.19206411,906.62,905.23,0.67322662]
[1764742548985,0.19206411,906.62,905.24,0.67322662]
[1764742549183,0.19206411,906.62,905.25,0.67322662]
[1764742549382,0.19206411,906.62,905.26,0.67322662]
[1764742549687,0.19206411,906.62,905.27,0.67322662]
[1764742549887,0.19206411,906.62,905.28,0.67322662]
[1764742550186,0.19206411,906.62,905.29,0.67322662]
[1764742550388,0.19206411,906.62,905.3,0.67322662]
[1764742550584,0.19206411,906.62,905.31,0.67322662]
[1764742550789,0.19206411,906.62,905.32,0.67322662]
[1764742551090,0.19206411,906.62,905.33,0.67322662]
[1764742551384,0.19206411,906.62,905.12,0.80550348]
[1764742551385,0.19206411,906.62,905.34,0.67322662]
[1764742551685,0.19206411,906.62,905.35,0.67322662]
[1764742551889,0.19206411,906.62,905.36,0.67322662]
[1764742552086,0.19206411,906.62,905.37,0.67322662]
[1764742552289,0.19206411,906.62,905.38,0.67322662]
[1764742552484,0.19206411,906.62,905.39,0.67322662]
[1764742552685,0.19206411,906.62,905.4,0.67322662]
[1764742552888,0.19206411,906.62,905.11,0.80550348]
[1764742553089,0.19206411,906.62,905.12,0.67181367]
[1764742553291,0.19206411,906.62,905.13,0.67181367]
[1764742553490,0.19206411,906.62,904.94,1.0727551]
[1764742553491,0.19206411,906.62,905.14,0.67181367]
[1764742553689,0.19206411,906.62,905.15,0.67181367]
[1764742553890,0.19206411,906.62,905.16,0.67181367]
[1764742554088,0.19206411,906.62,905.17,0.67181367]
[1764742554291,0.19206411,906.62,905.18,0.67181367]
[1764742554492,0.19206411,906.62,905.19,0.67181367]
[1764742554692,0.19206411,906.62,905.2,0.67181367]
[1764742554893,0.19206411,906.62,905.21,0.67181367]
[1764742555091,0.19206411,906.62,905.22,0.67181367]
[1764742555290,0.19206411,906.62,905.23,0.67181367]
[1764742555490,0.19206411,906.62,905.24,0.67181367]
[1764742555689,0.19206411,906.62,905.25,0.67181367]
[1764742555993,0.19206411,906.62,905.26,0.67181367]
[1764742556194,0.19206411,906.62,905.27,0.67181367]
[1764742556493,0.19206411,906.62,905.28,0.67181367]
[1764742556688,0.19206411,906.62,905.29,0.67181367]
[1764742556892,0.19206411,906.62,905.3,0.67181367]
[1764742557193,0.19206411,906.62,905.31,0.67181367]
[1764742557393,0.19206411,906.62,905.32,0.67181367]
[1764742557594,0.19206411,906.62,905.33,0.67181367]
[1764742557791,0.19206411,906.62,905.34,0.67181367]
[1764742557995,0.19206411,906.62,905.35,0.67181367]
[1764742558194,0.19206411,906.62,905.36,0.67181367]
[1764742558393,0.19206411,906.62,905.37,0.67181367]
[1764742558696,0.19206411,906.62,905.14,1.159]
[1764742558996,0.19206411,906.62,905.15,0.67045154]
[1764742559193,0.19206411,906.62,905.16,0.67045154]
[1764742559497,0.19206411,906.62,905.17,0.67045154]
[1764742559794,0.19206411,906.62,905.18,0.67045154]
[1764742559997,0.19206411,906.62,905.19,0.67045154]
[1764742560297,0.19206411,906.62,905.2,0.67045154]
[1764742560594,0.19206411,906.62,905.14,1.159]
[1764742560898,0.19206411,906.62,905.15,0.67065594]
[1764742561095,0.19206411,906.62,905.16,0.67065594]
[1764742561295,0.19206411,906.62,905.14,1.159]
[1764742569202,0.19206411,906.62,905.15,0.6712631]
[1764742569403,0.19206411,906.62,905.16,0.6712631]
[1764742569601,0.19206411,906.62,905.14,1.159]
[1764742569804,0.19206411,906.62,905.15,0.67146351]
[1764742570002,0.19206411,906.62,905.16,0.67146351]
[1764742570207,0.19206411,906.62,905.14,1.159]
[1764742570503,0.19206411,906.62,905.15,0.67149928]
[1764742570710,0.19206411,906.62,905.16,0.67149928]
[1764742570908,0.19206411,906.62,905.17,0.67149928]
[1764742571208,0.19206411,906.62,905.18,0.67149928]
[1764742571404,0.19206411,906.62,905.19,0.67149928]
[1764742571607,0.19206411,906.62,905.2,0.67149928]
[1764742571806,0.19206411,906.62,905.21,0.67149928]
[1764742572005,0.19206411,906.62,905.22,0.67149928]
[1764742572209,0.19206411,906.62,905.23,0.67149928]
[1764742572410,0.19206411,906.62,905.24,0.67149928]
[1764742572710,0.19206411,906.62,905.25,0.67149928]
[1764742572909,0.19206411,906.62,905.26,0.67149928]
[1764742573205,0.19206411,906.62,905.14,1.159]
[1764742573410,0.19206411,906.62,905.15,0.67205977]
[1764742573610,0.19206411,906.62,905.16,0.67205977]
[1764742573807,0.19206411,906.62,905.17,0.67205977]
[1764742574111,0.19206411,906.62,905.18,0.67205977]
[1764742574313,0.19206411,906.62,905.19,0.67205977]
[1764742574507,0.19206411,906.62,905.2,0.67205977]
[1764742574709,0.19206411,906.62,905.21,0.67205977]
[1764742575012,0.19206411,906.62,905.41,0.80550348]
[1764742575213,0.19206411,906.62,905.42,0.67205977]
[1764742575413,0.19206411,906.62,905.43,0.67205977]
[1764742575609,0.19206411,906.62,905.44,0.67205977]
[1764742575913,0.19206411,906.62,905.45,0.67205977]
[1764742576112,0.19206411,906.62,905.46,0.67205977]
[1764742576313,0.19206411,906.62,905.47,0.67205977]
[1764742576513,0.19206411,906.62,905.48,0.67205977]
[1764742576813,0.19206411,906.62,905.49,0.67205977]
[1764742577112,0.19206411,906.62,905.5,0.67205977]
[1764742577309,0.19206411,906.62,905.51,0.67205977]
[1764742577508,0.19206411,906.62,905.52,0.67205977]
[1764742577813,0.19206411,906.62,905.53,0.67205977]
[1764742578009,0.19206411,906.62,905.54,0.67205977]
[1764742578210,0.19206411,906.62,905.55,0.67205977]
[1764742578413,0.19206411,906.62,905.56,0.67205977]
[1764742578609,0.19206411,906.62,905.57,0.67205977]
[1764742578808,0.19206411,906.62,905.58,0.67205977]
[1764742579009,0.19206411,906.62,905.15,1.0727551]
[1764742579010,0.19206411,906.62,905.27,0.80550348]
[1764742579210,0.19206411,906.62,905.28,0.6729614]
[1764742579413,0.19206411,906.62,905.29,0.6729614]
[1764742579612,0.19206411,906.62,905.3,0.6729614]
[1764742579812,0.19206411,906.62,905.31,0.6729614]
[1764742580011,0.19206411,906.62,905.32,0.6729614]
[1764742580210,0.19206411,906.62,905.33,0.6729614]
[1764742580410,0.19206411,906.62,905.34,0.6729614]
[1764742580613,0.19206411,906.62,905.35,0.6729614]
[1764742580814,0.19206411,906.62,905.36,0.6729614]
[1764742581014,1.65188398,907.33,905.37,0.6729614]
[1764742581211,1.65188398,907.33,905.38,0.6729614]
[1764742581511,1.65188398,907.31,905.39,0.6729614]
[1764742581716,1.65188398,907.31,905.4,0.6729614]
[1764742582008,1.65188398,907.32,905.41,0.6729614]
[1764742582216,1.65188398,907.31,905.42,0.6729614]
[1764742582410,1.65188398,907.29,905.43,0.6729614]
[1764742582612,1.65188398,907.29,905.44,0.6729614]
[1764742582815,1.65188398,907.29,905.45,0.6729614]
[1764742583012,1.65188398,907.29,905.46,0.6729614]
[1764742583314,1.65188398,907.29,905.47,0.6729614]
[1764742583616,1.65188398,907.27,905.48,0.6729614]
[1764742583814,1.65188398,907.27,905.49,0.6729614]
[1764742584018,1.65188398,907.27,905.5,0.6729614]
[1764742584218,1.65188398,907.26,905.51,0.6729614]
[1764742584415,1.65188398,907.23,905.52,0.6729614]
[1764742584716,1.65188398,907.23,905.53,0.6729614]
[1764742584916,1.65188398,907.23,905.25,0.80550348]
[1764742585120,1.65188398,907.23,905.26,0.67477379]
[1764742585320,1.65188398,907.19,905.27,0.67477379]
[1764742585522,1.65188398,907.19,905.28,0.67477379]
[1764742585816,1.65188398,907.19,905.29,0.67477379]
[1764742586016,1.65188398,907.19,905.3,0.67477379]
[1764742586219,0.19203973,906.72,905.31,0.67477379]
[1764742586420,0.19203973,906.72,905.32,0.67477379]
[1764742586616,0.19203973,906.72,905.33,0.67477379]
[1764742586821,0.19203973,906.72,905.34,0.67477379]
[1764742587018,0.19203973,906.72,905.35,0.67477379]
[1764742587217,0.19203973,906.72,905.36,0.67477379]
[1764742587418,0.19203973,906.72,905.37,0.67477379]
[1764742587718,0.19203973,906.72,905.38,0.67477379]
[1764742588021,0.19203973,906.72,905.39,0.67477379]
[1764742588217,0.19203973,906.72,905.4,0.67477379]
[1764742588420,0.19203973,906.72,905.41,0.67477379]
[1764742588620,0.19203973,906.72,905.42,0.67477379]
[1764742588819,0.19203973,906.72,905.43,0.67477379]
[1764742589017,0.19203973,906.72,905.44,0.67477379]
[1764742589221,0.19203973,906.72,905.45,0.67477379]
[1764742589517,0.19203973,906.72,905.46,0.67477379]
[1764742589721,0.19203973,906.72,905.47,0.67477379]
[1764742589922,0.19203973,906.72,905.48,0.67477379]
[1764742590222,0.19203973,906.72,905.49,0.67477379]
[1764742590517,0.19203973,906.72,905.5,0.67477379]
[1764742590720,0.19203973,906.72,905.51,0.67477379]
[1764742590919,0.19203973,906.72,905.33,0.80550348]
[1764742590920,0.19203973,906.72,905.52,0.67477379]
[1764742591121,0.19203973,906.72,905.53,0.67477379]
[1764742591321,0.19203973,906.72,905.54,0.67477379]
[1764742591621,0.19203973,906.72,905.55,0.67477379]
[1764742591822,0.19203973,906.72,905.56,0.67477379]
[1764742592122,0.19203973,906.72,905.57,0.67477379]
[1764742592324,0.19203973,906.72,905.58,0.67477379]
[1764742592525,0.19203973,906.72,905.59,0.67477379]
[1764742592824,0.19203973,906.72,905.6,0.67477379]
[1764742593025,0.19203973,906.72,905.61,0.67477379]
[1764742593321,0.19203973,906.72,905.62,0.67477379]
[1764742593525,0.19203973,906.72,905.63,0.67477379]
[1764742593820,0.19203973,906.72,905.64,0.67477379]
[1764742594026,0.19203973,906.72,905.65,0.67477379]
[1764742594224,0.19203973,906.72,905.66,0.67477379]
[1764742594424,0.19203973,906.72,905.67,0.67477379]
[1764742594619,0.19203973,906.72,905.68,0.67477379]
[1764742594924,1.65188398,907.48,905.92,0.80550348]
[1764742595121,1.65188398,907.89,906.22,0.80550348]
[1764742595320,0.19192111,907.03,906.23,1.48027727]
[1764742595522,1.65188398,907.88,906.24,0.67477379]
[1764742595724,0.19184758,906.99,906.25,0.67477379]
[1764742595924,1.65188398,907.88,906.26,0.67477379]
[1764742596121,1.65188398,907.88,906.27,0.67477379]
[1764742596324,0.19184652,906.99,906.28,0.67477379]
[1764742596520,2.80054243,908.54,906.14,5.97111009]
[1764742596521,0.01108491,907.9,906.29,0.67477379]
[1764742596724,0.19184547,907.48,906.3,0.67477379]
[1764742596925,0.19184547,907.48,906.31,0.67477379]
[1764742597121,0.19184547,907.48,906.47,0.80550348]
[1764742597426,1.65188398,908.56,906.67,0.80550348]
[1764742597622,2.80054243,909.22,906.14,5.97111009]
[1764742597623,0.19175403,907.6,906.7,0.80550348]
[1764742597823,0.19175403,907.6,906.71,0.67477379]
[1764742598029,0.00979095,908.51,906.72,0.67477379]
[1764742598224,0.19171758,907.63,906.73,0.67477379]
[1764742598428,0.01168512,908.54,906.74,0.67477379]
[1764742598621,1.65188398,908.7,906.75,0.67477379]
[1764742598921,1.65188398,908.7,906.76,0.67477379]
[1764742599123,1.65188398,908.8,906.77,0.67477379]
[1764742599327,1.65188398,908.8,906.78,0.67477379]
[1764742599523,1.65188398,908.8,906.79,0.67477379]
[1764742599722,0.19171124,908.3,906.8,0.67477379]
[1764742599924,0.19171124,908.3,906.81,0.67477379]
[1764742600121,0.19171124,908.3,906.82,0.67477379]
[1764742600322,0.19171124,908.3,906.83,0.67477379]
[1764742600527,0.19171124,908.3,906.84,0.67477379]
[1764742600827,0.19171124,908.3,906.85,0.67477379]
[1764742601026,0.19171124,908.3,906.86,0.67477379]
[1764742601326,0.19171124,908.3,906.87,0.67477379]
[1764742601523,0.19171124,908.3,906.88,0.67477379]
[1764742601726,0.19171124,908.3,906.89,0.67477379]
[1764742601923,0.19171124,908.3,906.6,0.80550348]
[1764742602223,0.19171124,908.3,906.61,0.67129861]
[1764742602426,0.19171124,908.3,906.62,0.67129861]
[1764742602726,0.19171124,908.3,906.63,0.67129861]
[1764742602923,0.19171124,908.3,906.64,0.67129861]
[1764742603123,0.19171124,908.3,906.65,0.67129861]
[1764742603323,0.19171124,908.3,906.66,0.67129861]
[1764742603524,0.19171124,908.3,906.47,1.0727551]
[1764742603525,0.19171124,908.3,906.67,0.67129861]
[1764742603724,0.19171124,908.3,906.68,0.67129861]
[1764742603928,0.19171124,908.3,906.69,0.67129861]
[1764742604127,0.19171124,908.3,906.7,0.67129861]
[1764742604323,0.19171124,908.3,906.71,0.67129861]
[1764742604528,0.19171124,908.3,906.72,0.67129861]
[1764742604727,0.19171124,908.3,906.73,0.67129861]
[1764742604925,0.19171124,908.3,906.74,0.67129861]
[1764742605228,0.19171124,908.3,906.75,0.67129861]
[1764742605429,0.19171124,908.3,906.76,0.67129861]
[1764742605628,0.19171124,908.3,906.77,0.67129861]
[1764742605824,0.19171124,908.3,906.78,0.67129861]
[1764742606027,0.19171124,908.3,906.79,0.67129861]
[1764742606228,0.19171124,908.3,906.8,0.67129861]
[1764742606429,0.19171124,908.3,906.81,0.67129861]
[1764742606626,0.19171124,908.3,906.82,0.67129861]
[1764742606831,0.19171124,908.3,906.83,0.67129861]
[1764742607030,0.19171124,908.3,906.84,0.67129861]
[1764742607226,0.19171124,908.3,906.85,0.67129861]
[1764742607430,0.19171124,908.3,906.56,0.80550348]
[1764742607726,0.19171124,908.3,906.57,0.66762704]
[1764742607927,0.19171124,908.3,906.58,0.66762704]
[1764742608132,0.19171124,908.3,906.59,0.66762704]
[1764742608326,0.19171124,908.3,906.6,0.66762704]
[1764742608531,0.19171124,908.3,906.61,0.66762704]
[1764742608728,0.19171124,908.3,906.62,0.66762704]
[1764742609028,0.19171124,908.3,906.63,0.66762704]
[1764742609332,0.19171124,908.3,906.64,0.66762704]
[1764742609528,0.19171124,908.3,906.65,0.66762704]
[1764742609732,0.19171124,908.3,906.66,0.66762704]
[1764742609930,0.19171124,908.3,906.67,0.66762704]
[1764742610231,0.19171124,908.3,906.68,0.66762704]
[1764742610428,0.19171124,908.3,906.69,0.66762704]
[1764742610632,0.19171124,908.3,906.7,0.66762704]
[1764742610833,0.19171124,908.3,906.71,0.66762704]
[1764742611028,0.19171124,908.3,906.72,0.66762704]
[1764742611232,0.19171124,908.3,906.73,0.66762704]
[1764742611528,0.19171124,908.3,906.74,0.66762704]
[1764742611829,0.19171124,908.3,906.75,0.66762704]
[1764742612129,0.19171124,908.3,906.76,0.66762704]
[1764742612329,0.19171124,908.3,906.14,5.97111009]
[1764742612330,0.19171124,908.3,906.77,0.66762704]
[1764742612530,0.19171124,908.3,906.78,0.66762704]
[1764742612733,0.19171124,908.3,906.79,0.66762704]
[1764742612932,0.19171124,908.3,906.8,0.66762704]
[1764742613130,0.19171124,908.3,906.81,0.66762704]
[1764742613330,0.19171124,908.3,906.82,0.66762704]
[1764742613530,0.19171124,908.3,906.56,0.80550348]
[1764742613531,0.19171124,908.3,906.83,0.66762704]
[1764742613730,0.19171124,908.3,906.84,0.66762704]
[1764742613934,0.19171124,908.3,906.55,0.80550348]
[1764742614133,0.19171124,908.3,906.56,0.66496693]
[1764742614330,0.19171124,908.3,906.57,0.66496693]
[1764742614531,0.19171124,908.3,906.58,0.66496693]
[1764742614731,0.19171124,908.3,906.59,0.66496693]
[1764742614930,0.19171124,908.3,906.6,0.66496693]
[1764742615133,0.19171124,908.3,906.61,0.66496693]
[1764742615334,0.19171124,908.3,906.62,0.66496693]
[1764742615534,0.19171124,908.3,906.63,0.66496693]
[1764742615835,0.19171124,908.3,906.64,0.66496693]
[1764742616029,0.19171124,908.3,906.65,0.66496693]
[1764742616231,0.19171124,908.3,906.66,0.66496693]
[1764742616431,0.19171124,908.3,906.67,0.66496693]
[1764742616638,0.19171124,908.3,906.68,0.66496693]
[1764742616836,0.19171124,908.3,906.69,0.66496693]
[1764742617035,0.19171124,908.3,906.7,0.66496693]
[1764742617334,0.19171124,908.3,906.71,0.66496693]
[1764742617540,0.19171124,908.3,906.72,0.66496693]
[1764742617840,0.19171124,908.3,906.73,0.66496693]
[1764742618140,0.19171124,908.3,906.74,0.66496693]
[1764742618340,0.19171124,908.3,906.75,0.66496693]
[1764742618535,0.19171124,908.3,906.71,0.918]
[1764742618536,0.19171124,908.3,906.76,0.66496693]
[1764742618737,0.19171124,908.3,906.71,0.918]
[1764742618938,0.19171124,908.3,906.72,0.66370998]
[1764742619240,0.19171124,908.3,906.73,0.66370998]
[1764742619541,0.19171124,908.3,906.74,0.66370998]
[1764742619835,0.19171124,908.3,906.75,0.66370998]
[1764742620040,0.19171124,908.3,906.71,0.918]
[1764742620240,0.19171124,908.3,906.72,0.66353211]
[1764742620440,0.19171124,908.3,906.73,0.66353211]
[1764742620641,0.19171124,908.3,906.71,0.918]
[1764742621840,0.19171124,908.3,906.72,0.66347265]
[1764742622043,0.19171124,908.3,906.73,0.66347265]
[1764742622243,0.19171124,908.3,906.74,0.66347265]
[1764742622544,0.19171124,908.3,906.75,0.66347265]
[1764742622844,0.19171124,908.3,906.76,0.66347265]
[1764742623044,0.01108511,909.21,907.06,0.80550348]
[1764742623245,0.19156719,908.41,907.14,0.80550348]
[1764742623446,0.01120449,909.32,907.15,0.66347265]
[1764742623642,9.98188816,909.82,907.16,0.66347265]
[1764742623848,0.19154716,908.41,907.18,0.80550348]
[1764742624041,0.01336083,909.32,907.19,0.66347265]
[1764742624346,9.98188816,909.82,907.2,0.66347265]
[1764742624546,9.98188816,909.82,907.21,0.66347265]
[1764742624746,9.98188816,909.82,907.22,0.66347265]
[1764742624942,9.98188816,909.82,907.23,0.66347265]
[1764742625145,0.19154188,909.18,907.24,0.66347265]
[1764742625345,0.19154188,909.18,907.25,0.66347265]
[1764742625545,0.19154188,909.18,907.26,0.66347265]
[1764742625841,0.19154188,909.18,907.27,0.66347265]
[1764742626045,0.19154188,909.18,907.28,0.66347265]
[1764742626246,0.19154188,909.18,907.29,0.66347265]
[1764742626445,0.19154188,909.18,907.3,0.66347265]
[1764742626642,0.19154188,909.18,907.31,0.66347265]
[1764742626845,0.19154188,909.18,907.32,0.66347265]
[1764742627044,0.19154188,909.18,907.33,0.66347265]
[1764742627240,0.19154188,909.18,907.34,0.66347265]
[1764742627442,0.19154188,909.18,907.35,0.66347265]
[1764742627648,0.19154188,909.18,907.36,0.66347265]
[1764742627847,0.19154188,909.18,907.37,0.66347265]
[1764742628044,0.19154188,909.18,907.38,0.66347265]
[1764742628249,0.19154188,909.18,907.09,0.80550348]
[1764742628447,0.19154188,909.18,907.1,0.66007258]
[1764742628648,0.19154188,909.18,907.11,0.66007258]
[1764742628848,0.19154188,909.18,907.12,0.66007258]
[1764742629151,0.19154188,909.18,907.13,0.66007258]
[1764742629349,0.19154188,909.18,907.14,0.66007258]
[1764742629546,0.19154188,909.18,907.15,0.66007258]
[1764742629749,0.19154188,909.18,906.71,0.918]
[1764742629750,0.19154188,909.18,907.16,0.66007258]
[1764742629947,0.19154188,909.18,907.17,0.66007258]
[1764742630147,0.19154188,909.18,907.18,0.66007258]
[1764742630451,0.19154188,909.18,907.19,0.66007258]
[1764742630750,0.19154188,909.18,907.2,0.66007258]
[1764742630950,0.19154188,909.18,907.21,0.66007258]
[1764742631147,0.19154188,909.18,907.22,0.66007258]
[1764742631346,0.19154188,909.18,907.23,0.66007258]
[1764742631546,0.19154188,909.18,907.24,0.66007258]
[1764742631746,0.19154188,909.18,907.01,0.80550348]
[1764742631747,0.19154188,909.18,907.25,0.66007258]
[1764742632050,0.19154188,909.18,907.26,0.66007258]
[1764742632251,0.19154188,909.18,906.97,0.80550348]
[1764742632550,0.19154188,909.18,906.98,1.46576099]
[1764742632750,0.19154188,909.18,906.99,0.66025751]
[1764742633453,0.19154188,909.18,906.99,1.46576099]
[1764742633754,0.19154188,909.18,907.0,0.66025751]
[1764742633959,0.19154188,909.18,907.01,0.66025751]
[1764742634162,0.19154188,909.18,907.02,0.66025751]
[1764742634456,0.19154188,909.18,907.03,0.66025751]
[1764742634656,0.19154188,909.18,907.04,0.66025751]
[1764742634854,0.19154188,909.18,907.05,0.66025751]
[1764742635051,0.19154188,909.18,907.06,0.66025751]
[1764742635254,0.19154188,909.18,907.07,0.66025751]
[1764742635552,0.19154188,909.18,907.08,0.66025751]
[1764742635749,0.19154188,909.18,907.09,0.66025751]
[1764742635953,0.19154188,909.18,907.1,0.66025751]
[1764742636155,0.19154188,909.18,907.11,0.66025751]
[1764742636453,0.19154188,909.18,907.12,0.66025751]
[1764742636657,0.19154188,909.18,907.13,0.66025751]
[1764742636857,0.19154188,909.18,907.14,0.66025751]
[1764742637056,0.19154188,909.18,907.15,0.66025751]
[1764742637253,0.19154188,909.18,907.16,0.66025751]
[1764742637457,0.19154188,909.18,907.17,0.66025751]
[1764742637657,0.19154188,909.18,907.18,0.66025751]
[1764742637861,0.19154188,909.18,907.19,0.66025751]
[1764742638160,0.19154188,909.18,907.2,0.66025751]
[1764742638360,0.19154188,909.18,907.21,0.66025751]
[1764742638561,0.19154188,909.18,907.22,0.66025751]
[1764742638762,0.19154188,909.18,907.23,0.66025751]
[1764742638962,0.19154188,909.18,907.24,0.66025751]
[1764742639257,0.19154188,909.18,907.25,0.66025751]
[1764742639456,0.19154188,909.18,907.26,0.66025751]
[1764742639660,0.19154188,909.18,907.27,0.66025751]
[1764742639858,0.19154188,909.18,907.28,0.66025751]
[1764742640157,0.19154188,909.18,907.29,0.66025751]
[1764742640359,0.19154188,909.18,907.3,0.66025751]
[1764742640558,0.19154188,909.18,907.31,0.66025751]
[1764742640862,0.19154188,909.18,907.07,1.0727551]
[1764742640863,0.19154188,909.18,907.32,0.66025751]
[1764742641060,0.19154188,909.18,907.33,0.66025751]
[1764742641259,0.19154188,909.18,907.34,0.66025751]
[1764742641458,0.19154188,909.18,907.35,0.66025751]
[1764742641659,0.19154188,909.18,907.28,1.46576099]
[1764742641861,0.19154188,909.18,907.29,0.66025751]
[1764742642062,0.19154188,909.18,907.3,0.66025751]
[1764742642261,0.19154188,909.18,907.31,0.66025751]
[1764742642464,0.19154188,909.18,907.32,0.66025751]
[1764742642662,0.19154188,909.18,907.33,0.66025751]
[1764742642966,0.19154188,909.18,907.34,0.66025751]
[1764742643167,0.19154188,909.18,907.35,0.66025751]
[1764742643367,0.19154188,909.18,907.36,0.66025751]
[1764742643667,0.19154188,909.18,907.37,0.66025751]
[1764742646364,0.19154188,909.18,907.36,1.143]
[1764742647269,0.19154188,909.18,907.37,0.6651109]
[1764742647570,0.19154188,909.18,907.36,1.143]
[1764742651170,0.19154188,909.18,907.37,0.66863902]
[1764742651370,0.19154188,909.18,907.36,1.143]
[1764742651667,0.19154188,909.18,907.37,0.66863887]
[1764742651870,0.19154188,909.18,907.36,1.143]
[1764742652168,0.19154188,909.18,907.37,0.66863871]
[1764742652367,0.19154188,909.18,907.38,0.66863871]
[1764742652565,0.19154188,909.18,907.39,0.66863871]
[1764742652770,0.19154188,909.18,907.4,0.66863871]
[1764742653071,0.19154188,909.18,907.36,1.143]
[1764742653274,0.19154188,909.18,907.37,0.67097341]
[1764742653472,0.19154188,909.18,907.36,1.143]
[1764742653473,0.19154188,909.18,907.38,0.67097341]
[1764742653674,0.19154188,909.18,907.39,0.67097341]
[1764742653871,0.19154188,909.18,907.4,0.67097341]
[1764742654068,0.19154188,909.18,907.41,0.67097341]
[1764742654268,0.19154188,909.18,907.42,0.67097341]
[1764742654473,0.19154188,909.18,907.43,0.67097341]
[1764742654673,1.65188398,909.15,907.36,1.143]
[1764742654871,1.65188398,909.12,907.36,1.143]
[1764742655373,1.65188398,909.07,907.36,1.143]
[1764742656373,1.65188398,908.98,907.36,1.143]
[1764742657373,1.65188398,908.96,907.36,1.143]
[1764742658269,1.65188398,908.94,907.36,1.143]
[1764742659271,1.65188398,908.92,907.36,1.143]
[1764742659470,1.65188398,908.84,907.36,1.143]
[1764742659773,1.65188398,908.77,907.36,1.143]
[1764742659973,1.65188398,908.8,907.36,1.143]
[1764742660274,1.65188398,908.81,907.36,1.143]
[1764742661173,0.19154188,909.18,907.36,1.143]
[1764742661174,1.65188398,908.82,907.36,1.143]
[1764742661370,1.65188398,908.81,907.36,1.143]
[1764742662173,1.65188398,908.8,907.36,1.143]
[1764742663173,1.65188398,908.79,907.36,1.143]
[1764742663469,1.65188398,908.8,907.36,1.143]
[1764742663668,1.65188398,908.81,907.36,1.143]
[1764742663874,1.65188398,908.86,907.36,1.143]